[Event "*** Titled Tuesday Blitz"]
[Site "Chess.com"]
[Date "2020.12.01"]
[Round "3"]
[White "igorcadilhac"]
[Black "DarZay"]
[Result "0-1"]
[WhiteElo "2457"]
[BlackElo "2159"]
[TimeControl "180+1"]
[EndTime "10:28:39 PST"]
[Termination "DarZay won on time"]

1. e4 {[%clk 0:03:00.9]} 1... c5 {[%clk 0:02:59.6]} 2. Nf3 {[%clk 0:03:01.2]}
2... d6 {[%clk 0:02:58]} 3. d4 {[%clk 0:03:01.6]} 3... cxd4 {[%clk 0:02:56.8]}
4. Qxd4 {[%clk 0:03:02.5]} 4... Nc6 {[%clk 0:02:54.9]} 5. Bb5 {[%clk 0:03:03]}
5... e5 {[%clk 0:02:47.7]} 6. Qd3 {[%clk 0:03:02]} 6... Nf6 {[%clk 0:02:43.1]}
7. c4 {[%clk 0:02:58.1]} 7... Be7 {[%clk 0:02:40.2]} 8. Nc3 {[%clk 0:02:57.4]}
8... O-O {[%clk 0:02:39.5]} 9. O-O {[%clk 0:02:56.7]} 9... Bg4 {[%clk
0:02:36.8]} 10. Ne1 {[%clk 0:02:34]} 10... Nd4 {[%clk 0:02:33.6]} 11. f3 {[%clk
0:02:25.8]} 11... Be6 {[%clk 0:02:20.4]} 12. Be3 {[%clk 0:02:12.2]} 12... a6
{[%clk 0:02:18.2]} 13. Ba4 {[%clk 0:02:09.2]} 13... Rc8 {[%clk 0:02:06.9]} 14.
Nd5 {[%clk 0:02:02.9]} 14... b5 {[%clk 0:01:49]} 15. Nxe7+ {[%clk 0:01:46.8]}
15... Qxe7 {[%clk 0:01:47.9]} 16. cxb5 {[%clk 0:01:47.7]} 16... Bc4 {[%clk
0:01:44.4]} 17. Qd2 {[%clk 0:01:38.8]} 17... axb5 {[%clk 0:01:39.3]} 18. Bd1
{[%clk 0:01:10.6]} 18... Bxf1 {[%clk 0:01:38.2]} 19. Kxf1 {[%clk 0:01:11.5]}
19... Qc7 {[%clk 0:01:29.7]} 20. Bxd4 {[%clk 0:00:56.4]} 20... exd4 {[%clk
0:01:22.9]} 21. Bb3 {[%clk 0:00:52.9]} 21... Qc5 {[%clk 0:01:13.5]} 22. Nd3
{[%clk 0:00:50.1]} 22... Qb6 {[%clk 0:01:13.4]} 23. Qg5 {[%clk 0:00:40.6]} 23...
h6 {[%clk 0:01:08.4]} 24. Qg3 {[%clk 0:00:40.4]} 24... Rc7 {[%clk 0:01:02]} 25.
Ke2 {[%clk 0:00:18.6]} 25... Rfc8 {[%clk 0:01:01]} 26. Qe1 {[%clk 0:00:13.4]}
26... Nd7 {[%clk 0:00:56.9]} 27. Nf4 {[%clk 0:00:10.2]} 27... Qa6 {[%clk
0:00:52]} 28. Nd5 {[%clk 0:00:09.1]} 28... b4+ {[%clk 0:00:46.3]} 29. Kf2 {[%clk
0:00:08.5]} 29... Ne5 {[%clk 0:00:43.7]} 30. Nxc7 {[%clk 0:00:07.6]} 30... Rxc7
{[%clk 0:00:35]} 31. Kg1 {[%clk 0:00:07.8]} 31... d3 {[%clk 0:00:31.4]} 32. Rd1
{[%clk 0:00:05.6]} 32... Qb6+ {[%clk 0:00:26.7]} 33. Qf2 {[%clk 0:00:05]} 33...
Qxf2+ {[%clk 0:00:21.2]} 34. Kxf2 {[%clk 0:00:05.9]} 34... Rc2+ {[%clk
0:00:20.8]} 35. Kf1 {[%clk 0:00:01.7]} 35... Rxb2 {[%clk 0:00:19.2]} 36. f4
{[%clk 0:00:01.9]} 36... Ng4 {[%clk 0:00:11.4]} 37. Rxd3 {[%clk 0:00:02.2]}
37... Nxh2+ {[%clk 0:00:10.1]} 38. Kg1 {[%clk 0:00:01.4]} 38... Ng4 {[%clk
0:00:09.8]} 39. Rxd6 {[%clk 0:00:01.9]} 39... Nf2 {[%clk 0:00:03.8]} 0-1

[Event "*** Titled Tuesday Blitz"]
[Site "Chess.com"]
[Date "2020.12.01"]
[Round "3"]
[White "Iskusnyh"]
[Black "GukeshDommaraju"]
[Result "0-1"]
[WhiteElo "2625"]
[BlackElo "2891"]
[TimeControl "180+1"]
[EndTime "10:28:42 PST"]
[Termination "GukeshDommaraju won on time"]

1. d4 {[%clk 0:03:00.9]} 1... d5 {[%clk 0:02:57.9]} 2. c4 {[%clk 0:03:01.1]}
2... e6 {[%clk 0:02:57.7]} 3. Nf3 {[%clk 0:03:00.3]} 3... Nf6 {[%clk 0:02:56.5]}
4. g3 {[%clk 0:03:00.1]} 4... dxc4 {[%clk 0:02:56.3]} 5. Bg2 {[%clk 0:03:00.4]}
5... a6 {[%clk 0:02:56.8]} 6. O-O {[%clk 0:02:59.9]} 6... Nc6 {[%clk 0:02:57.2]}
7. Nbd2 {[%clk 0:02:58.5]} 7... Nxd4 {[%clk 0:02:50]} 8. Nxc4 {[%clk 0:02:57.6]}
8... Bc5 {[%clk 0:02:31.2]} 9. Nxd4 {[%clk 0:02:34.8]} 9... Bxd4 {[%clk
0:02:30.8]} 10. Bf4 {[%clk 0:02:19.3]} 10... O-O {[%clk 0:02:26]} 11. Bxc7
{[%clk 0:02:09.3]} 11... Bxf2+ {[%clk 0:02:24.1]} 12. Rxf2 {[%clk 0:02:09.4]}
12... Qxc7 {[%clk 0:02:24.4]} 13. Rc1 {[%clk 0:02:01.8]} 13... Rd8 {[%clk
0:02:21]} 14. Qb3 {[%clk 0:01:58]} 14... Rb8 {[%clk 0:02:02.5]} 15. Qb6 {[%clk
0:01:51.6]} 15... Qxb6 {[%clk 0:01:54]} 16. Nxb6 {[%clk 0:01:50.2]} 16... Bd7
{[%clk 0:01:54.3]} 17. Rc7 {[%clk 0:01:46.7]} 17... Bb5 {[%clk 0:01:32.2]} 18.
Bxb7 {[%clk 0:00:46.4]} 18... Rd1+ {[%clk 0:01:12.8]} 19. Rf1 {[%clk 0:00:45.4]}
19... Rxf1+ {[%clk 0:01:08]} 20. Kxf1 {[%clk 0:00:44.7]} 20... Ne8 {[%clk
0:01:05]} 21. Re7 {[%clk 0:00:36.9]} 21... Kf8 {[%clk 0:01:01.8]} 22. Nd7+
{[%clk 0:00:22.5]} 22... Kxe7 {[%clk 0:00:34.3]} 23. Nxb8 {[%clk 0:00:22.5]}
23... Nc7 {[%clk 0:00:34.7]} 24. Nc6+ {[%clk 0:00:19.6]} 24... Kd6 {[%clk
0:00:33.9]} 25. Nd4 {[%clk 0:00:19.5]} 25... Bd7 {[%clk 0:00:32.8]} 26. Ke1
{[%clk 0:00:18.9]} 26... e5 {[%clk 0:00:32.9]} 27. Nc2 {[%clk 0:00:17.5]} 27...
f6 {[%clk 0:00:27.5]} 28. Kd2 {[%clk 0:00:16.7]} 28... Be6 {[%clk 0:00:27.5]}
29. b3 {[%clk 0:00:16.4]} 29... h5 {[%clk 0:00:27.1]} 30. Ne3 {[%clk 0:00:13]}
30... Kc5 {[%clk 0:00:27.1]} 31. Kc2 {[%clk 0:00:10]} 31... a5 {[%clk
0:00:26.4]} 32. a3 {[%clk 0:00:09.7]} 32... Nb5 {[%clk 0:00:26.6]} 33. Kb2
{[%clk 0:00:07.7]} 33... Nd4 {[%clk 0:00:26]} 34. Bf3 {[%clk 0:00:08.3]} 34...
Nxf3 {[%clk 0:00:20.1]} 35. exf3 {[%clk 0:00:07.7]} 35... f5 {[%clk 0:00:20]}
36. Kc3 {[%clk 0:00:07.1]} 36... g5 {[%clk 0:00:18.1]} 37. b4+ {[%clk
0:00:07.5]} 37... axb4+ {[%clk 0:00:18.5]} 38. axb4+ {[%clk 0:00:08]} 38... Kb5
{[%clk 0:00:19.4]} 39. h4 {[%clk 0:00:07.3]} 39... f4 {[%clk 0:00:13.8]} 40. Nf1
{[%clk 0:00:05.6]} 40... Bh3 {[%clk 0:00:12.9]} 41. gxf4 {[%clk 0:00:03.4]}
41... exf4 {[%clk 0:00:11.6]} 42. Nh2 {[%clk 0:00:02]} 42... gxh4 {[%clk
0:00:08]} 0-1

[Event "*** Titled Tuesday Blitz"]
[Site "Chess.com"]
[Date "2020.12.01"]
[Round "3"]
[White "diamonds13"]
[Black "Agibileg"]
[Result "0-1"]
[WhiteElo "2328"]
[BlackElo "2536"]
[TimeControl "180+1"]
[EndTime "10:28:44 PST"]
[Termination "Agibileg won by resignation"]

1. d4 {[%clk 0:03:00.9]} 1... Nf6 {[%clk 0:02:58.9]} 2. c4 {[%clk 0:03:01.4]}
2... g6 {[%clk 0:02:59.1]} 3. Nc3 {[%clk 0:03:01.4]} 3... Bg7 {[%clk 0:02:59.6]}
4. e4 {[%clk 0:03:01.4]} 4... d6 {[%clk 0:02:59.6]} 5. Bd3 {[%clk 0:03:01.8]}
5... O-O {[%clk 0:03:00.2]} 6. Nge2 {[%clk 0:03:01.3]} 6... e5 {[%clk
0:02:55.3]} 7. d5 {[%clk 0:03:01.2]} 7... a5 {[%clk 0:02:52.8]} 8. h3 {[%clk
0:03:01]} 8... Na6 {[%clk 0:02:49.9]} 9. Be3 {[%clk 0:03:01.4]} 9... c6 {[%clk
0:02:46.1]} 10. g4 {[%clk 0:02:56.5]} 10... Nc5 {[%clk 0:02:34.5]} 11. Bc2
{[%clk 0:02:54]} 11... Bd7 {[%clk 0:02:32.7]} 12. Qd2 {[%clk 0:02:50.4]} 12...
cxd5 {[%clk 0:02:32.2]} 13. exd5 {[%clk 0:02:48]} 13... a4 {[%clk 0:02:24.2]}
14. Ng3 {[%clk 0:02:43.9]} 14... Qa5 {[%clk 0:02:22.1]} 15. g5 {[%clk
0:02:40.5]} 15... Ne8 {[%clk 0:02:13.7]} 16. h4 {[%clk 0:02:40]} 16... a3 {[%clk
0:02:02.5]} 17. b3 {[%clk 0:02:27.7]} 17... e4 {[%clk 0:02:02.8]} 18. Nge2
{[%clk 0:02:18.2]} 18... b5 {[%clk 0:01:24]} 19. Rd1 {[%clk 0:02:01.1]} 19...
bxc4 {[%clk 0:01:14.8]} 20. bxc4 {[%clk 0:02:00.5]} 20... Bf5 {[%clk 0:00:55.7]}
21. h5 {[%clk 0:01:53]} 21... Nd3+ {[%clk 0:00:54.6]} 22. Bxd3 {[%clk 0:01:37]}
22... exd3 {[%clk 0:00:55.5]} 23. Nd4 {[%clk 0:01:35.5]} 23... Nc7 {[%clk
0:00:44.4]} 24. Rc1 {[%clk 0:01:10.4]} 24... Rfe8 {[%clk 0:00:19.5]} 25. Kf1
{[%clk 0:01:09]} 25... Bg4 {[%clk 0:00:09.1]} 26. hxg6 {[%clk 0:01:00]} 26...
hxg6 {[%clk 0:00:08.2]} 27. Qxd3 {[%clk 0:01:00.2]} 27... Na6 {[%clk 0:00:07.4]}
28. Nc6 {[%clk 0:00:59.9]} 28... Qc7 {[%clk 0:00:06.9]} 29. Nb5 {[%clk
0:00:58.5]} 29... Qd7 {[%clk 0:00:06.8]} 30. Kg2 {[%clk 0:00:47.6]} 30... Nc5
{[%clk 0:00:06.6]} 31. Bxc5 {[%clk 0:00:46.1]} 31... dxc5 {[%clk 0:00:07]} 32.
Rh4 {[%clk 0:00:34.1]} 32... Bf5 {[%clk 0:00:07.5]} 33. Qf3 {[%clk 0:00:30.6]}
33... Rac8 {[%clk 0:00:05]} 34. Rch1 {[%clk 0:00:29.9]} 34... Kf8 {[%clk
0:00:04.2]} 35. Rh8+ {[%clk 0:00:18.2]} 35... Bxh8 {[%clk 0:00:04]} 36. Rxh8+
{[%clk 0:00:18.1]} 36... Kg7 {[%clk 0:00:04.6]} 37. Rh6 {[%clk 0:00:18.2]} 37...
Rxc6 {[%clk 0:00:04.9]} 38. Qc3+ {[%clk 0:00:16.9]} 38... f6 {[%clk 0:00:03.8]}
39. dxc6 {[%clk 0:00:16.7]} 39... Qxc6+ {[%clk 0:00:03.8]} 40. f3 {[%clk
0:00:16.3]} 40... Re2+ {[%clk 0:00:03.3]} 41. Kf1 {[%clk 0:00:16.3]} 41... Re5
{[%clk 0:00:03.5]} 42. Qd2 {[%clk 0:00:14.9]} 42... Qxf3+ {[%clk 0:00:03]} 43.
Qf2 {[%clk 0:00:14.5]} 43... Bd3+ {[%clk 0:00:02.8]} 44. Kg1 {[%clk 0:00:14.8]}
44... Rxg5+ {[%clk 0:00:02.1]} 45. Kh2 {[%clk 0:00:13.6]} 45... Qxf2+ {[%clk
0:00:02.7]} 46. Kh3 {[%clk 0:00:12.2]} 46... Kxh6 {[%clk 0:00:03.6]} 0-1

[Event "*** Titled Tuesday Blitz"]
[Site "Chess.com"]
[Date "2020.12.01"]
[Round "3"]
[White "GM4life"]
[Black "juancruzarias"]
[Result "1-0"]
[WhiteElo "2339"]
[BlackElo "2518"]
[TimeControl "180+1"]
[EndTime "10:28:44 PST"]
[Termination "GM4life won by resignation"]

1. e4 {[%clk 0:03:00.9]} 1... c5 {[%clk 0:02:50.3]} 2. Nf3 {[%clk 0:03:01]} 2...
d6 {[%clk 0:02:50.1]} 3. d4 {[%clk 0:03:01.4]} 3... cxd4 {[%clk 0:02:51]} 4.
Nxd4 {[%clk 0:03:02]} 4... Nf6 {[%clk 0:02:51.5]} 5. Nc3 {[%clk 0:03:02.5]} 5...
Nc6 {[%clk 0:02:52.1]} 6. Bg5 {[%clk 0:03:02]} 6... e6 {[%clk 0:02:51.6]} 7. Qd2
{[%clk 0:03:02.3]} 7... a6 {[%clk 0:02:51.4]} 8. O-O-O {[%clk 0:03:02.9]} 8...
Be7 {[%clk 0:02:51.4]} 9. f4 {[%clk 0:03:03]} 9... Bd7 {[%clk 0:02:48.3]} 10.
Nf3 {[%clk 0:03:02.9]} 10... h6 {[%clk 0:02:35]} 11. Bxf6 {[%clk 0:03:02.8]}
11... gxf6 {[%clk 0:02:31.7]} 12. Kb1 {[%clk 0:02:58]} 12... b5 {[%clk
0:02:28.4]} 13. Bd3 {[%clk 0:02:55]} 13... Qb6 {[%clk 0:02:16.1]} 14. f5 {[%clk
0:02:53.1]} 14... b4 {[%clk 0:02:11]} 15. fxe6 {[%clk 0:02:52.8]} 15... fxe6
{[%clk 0:02:09]} 16. Ne2 {[%clk 0:02:36.3]} 16... O-O-O {[%clk 0:01:37.6]} 17.
Nf4 {[%clk 0:02:35.4]} 17... Rdg8 {[%clk 0:01:35.9]} 18. Rhf1 {[%clk 0:02:33.3]}
18... Kb8 {[%clk 0:01:32]} 19. Bc4 {[%clk 0:02:24.2]} 19... Nd8 {[%clk
0:01:15.1]} 20. Nd4 {[%clk 0:02:21.6]} 20... d5 {[%clk 0:00:47.6]} 21. exd5
{[%clk 0:01:47.9]} 21... e5 {[%clk 0:00:47.7]} 22. d6 {[%clk 0:01:48.2]} 22...
Bxd6 {[%clk 0:00:29.2]} 23. Bxg8 {[%clk 0:01:48]} 23... Rxg8 {[%clk 0:00:25.8]}
24. Nb3 {[%clk 0:01:25.6]} 24... Nb7 {[%clk 0:00:23.5]} 25. Nd5 {[%clk
0:01:24.2]} 25... Qc6 {[%clk 0:00:18.4]} 26. Nxf6 {[%clk 0:01:20.2]} 26... Rc8
{[%clk 0:00:18.2]} 27. Nxd7+ {[%clk 0:01:10.4]} 27... Qxd7 {[%clk 0:00:19.1]}
28. Qd5 {[%clk 0:01:10]} 28... Qg4 {[%clk 0:00:17.9]} 29. Na5 {[%clk 0:00:59.3]}
29... Nxa5 {[%clk 0:00:07.6]} 30. Qxa5 {[%clk 0:00:48.8]} 30... Bc7 {[%clk
0:00:07.5]} 31. Qxa6 {[%clk 0:00:46.7]} 31... Qxg2 {[%clk 0:00:07.5]} 32. Qb5+
{[%clk 0:00:41.1]} 32... Ka7 {[%clk 0:00:06.8]} 33. Qc5+ {[%clk 0:00:36.7]}
33... Kb8 {[%clk 0:00:06.8]} 34. Qxb4+ {[%clk 0:00:36.5]} 34... Ka7 {[%clk
0:00:07.1]} 35. Qa4+ {[%clk 0:00:32.7]} 35... Kb7 {[%clk 0:00:06.6]} 36. Rf6
{[%clk 0:00:28.9]} 36... Qe2 {[%clk 0:00:04.9]} 37. Qc6+ {[%clk 0:00:27.1]}
37... Kb8 {[%clk 0:00:05]} 38. Qd5 {[%clk 0:00:20.3]} 38... Rd8 {[%clk
0:00:04.2]} 39. Qb3+ {[%clk 0:00:17]} 39... Ka7 {[%clk 0:00:04.5]} 40. Qa4+
{[%clk 0:00:15.7]} 40... Kb7 {[%clk 0:00:04]} 41. Qb4+ {[%clk 0:00:15.6]} 41...
Ka7 {[%clk 0:00:04.1]} 42. Rxd8 {[%clk 0:00:13.7]} 42... Bxd8 {[%clk 0:00:02.7]}
43. Rf7+ {[%clk 0:00:13.9]} 43... Ka6 {[%clk 0:00:01.9]} 44. Qb7+ {[%clk
0:00:13.9]} 44... Ka5 {[%clk 0:00:02.8]} 45. b4+ {[%clk 0:00:13.9]} 45... Ka4
{[%clk 0:00:02.8]} 46. Qa7+ {[%clk 0:00:14]} 46... Kxb4 {[%clk 0:00:03.7]} 47.
Rb7+ {[%clk 0:00:13.9]} 47... Kc3 {[%clk 0:00:04.2]} 48. Qa5+ {[%clk 0:00:13.4]}
48... Kd4 {[%clk 0:00:04.8]} 49. Qxd8+ {[%clk 0:00:13.2]} 49... Ke4 {[%clk
0:00:04.7]} 50. Qd3+ {[%clk 0:00:13.5]} 1-0

[Event "*** Titled Tuesday Blitz"]
[Site "Chess.com"]
[Date "2020.12.01"]
[Round "3"]
[White "sbouchet"]
[Black "Berardino"]
[Result "0-1"]
[WhiteElo "2393"]
[BlackElo "2634"]
[TimeControl "180+1"]
[EndTime "10:28:46 PST"]
[Termination "Berardino won on time"]

1. e4 {[%clk 0:03:00.9]} 1... c5 {[%clk 0:02:57.8]} 2. c3 {[%clk 0:02:59.3]}
2... a6 {[%clk 0:02:50]} 3. d4 {[%clk 0:02:58.2]} 3... cxd4 {[%clk 0:02:50.5]}
4. cxd4 {[%clk 0:02:59]} 4... d5 {[%clk 0:02:50.8]} 5. e5 {[%clk 0:02:54.7]}
5... Nc6 {[%clk 0:02:49.1]} 6. Nc3 {[%clk 0:02:52.7]} 6... Bf5 {[%clk
0:02:47.4]} 7. Be3 {[%clk 0:02:36.1]} 7... e6 {[%clk 0:02:47.3]} 8. Nf3 {[%clk
0:02:07.3]} 8... Nge7 {[%clk 0:02:41.2]} 9. Be2 {[%clk 0:02:07]} 9... h6 {[%clk
0:02:40.5]} 10. Qb3 {[%clk 0:01:53.6]} 10... b5 {[%clk 0:02:26.6]} 11. a4 {[%clk
0:01:45.5]} 11... b4 {[%clk 0:02:23.4]} 12. Na2 {[%clk 0:01:44.8]} 12... Qb6
{[%clk 0:02:13.1]} 13. O-O {[%clk 0:01:38.5]} 13... Rb8 {[%clk 0:02:11.9]} 14.
Nc1 {[%clk 0:01:29]} 14... Na5 {[%clk 0:02:11.8]} 15. Qd1 {[%clk 0:01:23.7]}
15... Nec6 {[%clk 0:02:08.2]} 16. b3 {[%clk 0:01:15.1]} 16... Be7 {[%clk
0:02:07.5]} 17. Bd3 {[%clk 0:01:10.2]} 17... Bxd3 {[%clk 0:02:06.4]} 18. Nxd3
{[%clk 0:01:09.6]} 18... O-O {[%clk 0:02:06.5]} 19. Rc1 {[%clk 0:01:02.3]} 19...
Rfc8 {[%clk 0:02:06.5]} 20. Nc5 {[%clk 0:00:45.6]} 20... Bxc5 {[%clk 0:02:06.3]}
21. Rxc5 {[%clk 0:00:45.2]} 21... Ne7 {[%clk 0:02:03.3]} 22. Qd3 {[%clk
0:00:43.5]} 22... Rxc5 {[%clk 0:01:53.1]} 23. dxc5 {[%clk 0:00:44.4]} 23... Qb7
{[%clk 0:01:43.7]} 24. Rc1 {[%clk 0:00:40.5]} 24... Nec6 {[%clk 0:01:40.1]} 25.
h4 {[%clk 0:00:34.9]} 25... Rd8 {[%clk 0:01:37.7]} 26. Bd4 {[%clk 0:00:33]}
26... Qc7 {[%clk 0:01:30]} 27. Bb2 {[%clk 0:00:16.3]} 27... Qa7 {[%clk 0:01:21]}
28. h5 {[%clk 0:00:16.2]} 28... Rc8 {[%clk 0:01:16.4]} 29. g4 {[%clk 0:00:16.1]}
29... Ne7 {[%clk 0:01:11.3]} 30. Bd4 {[%clk 0:00:15.9]} 30... Nac6 {[%clk
0:01:08.9]} 31. Bb2 {[%clk 0:00:16.1]} 31... a5 {[%clk 0:01:05.3]} 32. Kg2
{[%clk 0:00:16.1]} 32... Nd8 {[%clk 0:00:58.3]} 33. Qb5 {[%clk 0:00:16.3]} 33...
Nec6 {[%clk 0:00:55.5]} 34. Qd3 {[%clk 0:00:15.6]} 34... Nb7 {[%clk 0:00:52.2]}
35. Qe3 {[%clk 0:00:14.7]} 35... Qa6 {[%clk 0:00:22.5]} 36. g5 {[%clk
0:00:11.9]} 36... Ne7 {[%clk 0:00:20.7]} 37. gxh6 {[%clk 0:00:10.8]} 37... Nf5
{[%clk 0:00:21]} 38. Qg5 {[%clk 0:00:11]} 38... Nxh6 {[%clk 0:00:20.6]} 39. Bd4
{[%clk 0:00:07.8]} 39... Nd8 {[%clk 0:00:17.8]} 40. Rg1 {[%clk 0:00:07.2]} 40...
Qd3 {[%clk 0:00:15.5]} 41. Kh2 {[%clk 0:00:05.8]} 41... Nf5 {[%clk 0:00:14.6]}
42. Nh4 {[%clk 0:00:04.1]} 42... Qxd4 {[%clk 0:00:13.5]} 43. Nxf5 {[%clk
0:00:03.7]} 43... Qxe5+ {[%clk 0:00:14]} 44. Rg3 {[%clk 0:00:02.4]} 44... exf5
{[%clk 0:00:13.8]} 45. h6 {[%clk 0:00:02.4]} 45... g6 {[%clk 0:00:13.5]} 46. h7+
{[%clk 0:00:02.3]} 46... Kxh7 {[%clk 0:00:13.9]} 47. Kg2 {[%clk 0:00:01.4]}
47... Kg7 {[%clk 0:00:12.6]} 48. Rh3 {[%clk 0:00:01.1]} 48... Ne6 {[%clk
0:00:12.3]} 0-1

[Event "*** Titled Tuesday Blitz"]
[Site "Chess.com"]
[Date "2020.12.01"]
[Round "3"]
[White "Susal_De_Silva"]
[Black "hansen"]
[Result "1/2-1/2"]
[WhiteElo "2650"]
[BlackElo "2918"]
[TimeControl "180+1"]
[EndTime "10:28:51 PST"]
[Termination "Game drawn by repetition"]

1. e4 {[%clk 0:03:00.9]} 1... c5 {[%clk 0:02:59.2]} 2. Nf3 {[%clk 0:03:00.7]}
2... e6 {[%clk 0:02:59.2]} 3. d4 {[%clk 0:03:00.6]} 3... cxd4 {[%clk 0:03:00]}
4. Nxd4 {[%clk 0:03:00.5]} 4... a6 {[%clk 0:02:59.6]} 5. Be2 {[%clk 0:03:00.3]}
5... Qc7 {[%clk 0:02:59.1]} 6. O-O {[%clk 0:03:00.1]} 6... Nf6 {[%clk
0:02:58.9]} 7. Nc3 {[%clk 0:03:00.3]} 7... Bb4 {[%clk 0:02:58.4]} 8. Qd3 {[%clk
0:02:56.5]} 8... Nc6 {[%clk 0:02:58.2]} 9. Bg5 {[%clk 0:02:56.1]} 9... h6 {[%clk
0:02:49.9]} 10. Bh4 {[%clk 0:02:53.1]} 10... Ne5 {[%clk 0:02:44.3]} 11. Qe3
{[%clk 0:02:27.1]} 11... Bc5 {[%clk 0:02:35.2]} 12. Bg3 {[%clk 0:02:14]} 12...
d6 {[%clk 0:02:34.8]} 13. Rad1 {[%clk 0:02:06.8]} 13... b5 {[%clk 0:02:14]} 14.
Bxe5 {[%clk 0:01:50.3]} 14... dxe5 {[%clk 0:02:10.9]} 15. Qg3 {[%clk 0:01:50.4]}
15... O-O {[%clk 0:01:59.8]} 16. Nf3 {[%clk 0:01:40.2]} 16... b4 {[%clk
0:01:50.5]} 17. Na4 {[%clk 0:01:32.6]} 17... Bd6 {[%clk 0:01:50.9]} 18. Bd3
{[%clk 0:01:29]} 18... Bb7 {[%clk 0:01:33.6]} 19. Nd2 {[%clk 0:01:17.9]} 19...
Rfd8 {[%clk 0:01:15.2]} 20. b3 {[%clk 0:01:15.9]} 20... Nh5 {[%clk 0:01:07.9]}
21. Qe3 {[%clk 0:01:04.1]} 21... Nf4 {[%clk 0:01:07.9]} 22. Nc4 {[%clk
0:01:01.6]} 22... Qe7 {[%clk 0:00:55.5]} 23. g3 {[%clk 0:00:54.7]} 23... Nh3+
{[%clk 0:00:33.3]} 24. Kg2 {[%clk 0:00:53.2]} 24... Ng5 {[%clk 0:00:33.9]} 25.
f3 {[%clk 0:00:52.4]} 25... Rab8 {[%clk 0:00:32.5]} 26. Nxd6 {[%clk 0:00:48.5]}
26... Rxd6 {[%clk 0:00:32.5]} 27. Nb2 {[%clk 0:00:46.2]} 27... Rd4 {[%clk
0:00:30.8]} 28. h4 {[%clk 0:00:39.3]} 28... Nh7 {[%clk 0:00:31]} 29. Be2 {[%clk
0:00:39.3]} 29... Rbd8 {[%clk 0:00:26.5]} 30. Nc4 {[%clk 0:00:38.2]} 30... Qc7
{[%clk 0:00:25.9]} 31. Rxd4 {[%clk 0:00:28.1]} 31... exd4 {[%clk 0:00:24.3]} 32.
Qf4 {[%clk 0:00:28.1]} 32... Qxf4 {[%clk 0:00:17.4]} 33. gxf4 {[%clk 0:00:29]}
33... Nf6 {[%clk 0:00:17.3]} 34. Kh3 {[%clk 0:00:24.7]} 34... Nh5 {[%clk
0:00:16.9]} 35. Kg4 {[%clk 0:00:24]} 35... g6 {[%clk 0:00:09.5]} 36. f5 {[%clk
0:00:24.1]} 36... exf5+ {[%clk 0:00:08.1]} 37. exf5 {[%clk 0:00:24.4]} 37... Bc8
{[%clk 0:00:08.1]} 38. Bd3 {[%clk 0:00:24.6]} 38... Rd5 {[%clk 0:00:08.4]} 39.
Re1 {[%clk 0:00:18.2]} 39... Kg7 {[%clk 0:00:08.4]} 40. Re7 {[%clk 0:00:15.4]}
40... gxf5+ {[%clk 0:00:04]} 41. Kxh5 {[%clk 0:00:11.6]} 41... Kf6 {[%clk
0:00:02.4]} 42. Re1 {[%clk 0:00:07.1]} 42... Be6 {[%clk 0:00:01.9]} 43. f4
{[%clk 0:00:06.6]} 43... Rd8 {[%clk 0:00:01.8]} 44. Ne5 {[%clk 0:00:06.8]} 44...
Bd5 {[%clk 0:00:01.6]} 45. Rg1 {[%clk 0:00:06.7]} 45... Re8 {[%clk 0:00:01.7]}
46. Nd7+ {[%clk 0:00:06.7]} 46... Ke7 {[%clk 0:00:01.8]} 47. Ne5 {[%clk
0:00:07.6]} 47... Kf6 {[%clk 0:00:02.4]} 48. Bc4 {[%clk 0:00:06.5]} 48... Be4
{[%clk 0:00:01.7]} 49. Bd3 {[%clk 0:00:06.5]} 49... Bd5 {[%clk 0:00:02]} 1/2-1/2